Cogmind - Beta 16.1 @@@ ROGUE MODE // 2026.02.10 @ 13:11:30 Player: Drago Result: Destroyed by Piercing Trap Performance ------------- Evolutions (0) 0 Regions Visited (2) 400 Robots Destroyed (25) 125 Value Destroyed (690) 690 Prototype IDs (2) 40 Alien Tech Used (0) 0 Bonus (0) 0 TOTAL SCORE: 1255 Bonus ------- None Cogmind --------- Core Integrity 0/250 Matter 250/300 Energy 199/200 System Corruption 1% Temperature Cool (0) Movement Rolling (130) Ox2 Location -10/Subcaves Parts ------- > --- POWER (1) -------- Subdweller Power Source > --- PROPULSION (2) --- Light Treads Subdweller Monowheel > --- UTILITY (2) ------ High-capacity Storage Unit Seismic Detector > --- WEAPON (2) ------- Subdweller Beam Cannon Grenade Launcher > --- INVENTORY (20) --- Light Ion Engine Subdweller Power Source Light Treads Subdweller Monowheel Small Storage Unit High-capacity Matter Pod (200) Subdweller Optics Subdweller Optics Subdweller Optics Light Armor Plating Medium Laser Subdweller Laser Subdweller Beam Cannon Light Assault Rifle Subdweller Machine Gun Datajack Mining Laser Flamer Makeshift Spear Peak State ------------ > --- POWER ------------ Subdweller Power Source > --- PROPULSION ------- Light Treads Wheel > --- UTILITY ---------- High-capacity Storage Unit Seismic Detector > --- WEAPON ----------- Subdweller Beam Cannon Subdweller Machine Gun > --- INVENTORY -------- Light Ion Engine Light Treads Subdweller Monowheel Subdweller Monowheel Small Storage Unit High-capacity Matter Pod Subdweller Optics Subdweller Optics Subdweller Optics Light Armor Plating Medium Laser Subdweller Laser Subdweller Beam Cannon Light Assault Rifle Grenade Launcher Datajack Mining Laser Flamer Makeshift Spear [Rating: 13] Favorites ----------- Power Subdweller Power Source Engine Subdweller Power Source Propulsion Wheel Treads Light Treads Wheel Wheel Utility Seismic Detector Device Seismic Detector Storage High-capacity Storage Unit Weapon Mining Laser Energy Gun Medium Laser Energy Cannon Subdweller Beam Cannon Ballistic Gun Assault Rifle Launcher Grenade Launcher Special Weapon Mining Laser Special Melee Weapon Datajack Build | -11 -10 -10 ------- Run | Yrd Mat Sub Slots Evolved . | . . . Power . | . . . Propulsion . | . . . Utility . | . . . Weapon . | . . . Parts Attached 24 | 8 8 8 Power 2 | 1 . 1 Engine 2 | 1 . 1 Core . | . . . Reactor . | . . . Propulsion 6 | 2 2 2 Treads 2 | 1 . 1 Leg . | . . . Wheel 4 | 1 2 1 Hover . | . . . Flight . | . . . Utility 3 | 2 1 . Device 1 | 1 . . Storage 2 | 1 1 . Processor . | . . . Hackware . | . . . Protection . | . . . Artifact . | . . . Weapon 13 | 3 5 5 Energy Gun 2 | 2 . . Energy Cannon 2 | . . 2 Ballistic Gun 5 | 1 2 2 Ballistic Cannon . | . . . Launcher 2 | . 1 1 Special Weapon 1 | . 1 . Impact Weapon . | . . . Slashing Weapon . | . . . Piercing Weapon . | . . . Special Melee Weapon 1 | . 1 . Unidentified Prototypes . | . . . Parts Lost 6 | . 1 5 Power 1 | . . 1 Propulsion 3 | . 1 2 Utility . | . . . Weapon 2 | . . 2 Highest Loss Streak 1 | . 1 1 To Critical Strikes . | . . . Average Backups 14 | 2 9 18 Power 1 | . 1 1 Propulsion 2 | 1 1 2 Utility 3 | . 2 5 Weapon 6 | . 4 8 Tool/Special . | . . . Unused Backups 15 | . 1 14 Power 2 | . . 2 Propulsion 2 | . . 2 Utility 7 | . 1 6 Weapon 4 | . . 4 Tool/Special . | . . . Average Slot Usage (%) 98 | . 99 97 Engine 12 | . 14 12 Treads 8 | . 3 11 Wheel 19 | . 23 16 Device 14 | . 14 14 Storage 14 | . 14 14 Energy Gun 2 | . 8 . Energy Cannon 7 | . . 11 Ballistic Gun 7 | . 7 8 Launcher 1 | . 1 . Special Weapon 7 | . 7 7 Special Melee Weapon 1 | . 3 . Peak Build Rating 13 | 7 8 13 Average Rating 9 | 5 7 11 On Entrance 5 | . 7 8 Avg Prop Armor Cover (%) 13 | 16 12 13 Naked Turns . | . . . Heaviest Build 58 | 12 49 58 Greatest Support 26 | 10 26 20 Greatest Overweight (x) 5 | 1 4 5 Average Overweight (x) 2 | . 1 4 Largest Inventory Capacity 20 | 8 20 20 Average Capacity 18 | 7 16 20 Most Carried 20 | 4 11 20 Average Carried 14 | 2 9 18 Final Capacity 20 | 8 20 20 Final Carried 19 | 4 11 19 Class Distribution -------------------- 67% | Mutant 32% | Scavenger-Mutant Dominant Class ---------------- Mutant | -10/Materials Scavenger-Mutant | -10/Subcaves Resources | -11 -10 -10 ----------- Run | Yrd Mat Sub Matter Collected 1040 | 292 211 537 Remotely . | . . . Salvage Created 679 | 106 132 441 Parts 47 | 5 15 27 Haulers Intercepted . | . . . Recyclers Shooed 1 | 1 . . Parts Field Recycled . | . . . Retrieved Matter . | . . . Parts Self-Destructed 1 | . . 1 Prevented . | . . . Parts Restored . | . . . Kills | -11 -10 -10 ------- Run | Yrd Mat Sub Combat Hostiles Destroyed 21 | . 9 12 Guns 9 | . 1 8 Cannons 2 | . . 2 AOE 10 | . 8 2 Classes Destroyed 7 | 2 3 2 Tunneler 2 | 2 . . Recycler 1 | 1 . . Watcher 1 | . 1 . Swarmer 7 | . 6 1 Grunt 4 | . 3 1 Sentry 1 | . . 1 Subdweller 9 | . . 9 Best Kill Streak 7 | 2 7 3 Combat Bots Only 6 | . 6 3 Max Kills in Single Turn 3 | 1 3 1 Gunslinging . | . . . Exploded 3 | . 3 1 Melee . | . . . Uniques/NPCs Destroyed . | . . . Combat | -11 -10 -10 -------- Run | Yrd Mat Sub Hostile Shots Fired 76 | . 26 50 Missed 18 | . 5 13 Hits 58 | . 21 37 Projectile 58 | . 21 37 Critical Strikes 2 | . . 2 Damage Taken 1196 | . 375 821 Core 257 | . 69 188 Absorbed by Shields . | . . . Core Remaining (%) 100 | 100 . . Volleys Fired 109 | 12 35 62 Largest 2 | 2 2 2 Hottest 180 | 70 100 180 Shots Fired 164 | 24 44 96 Gun 96 | 24 18 54 Cannon 11 | . . 11 Launcher 14 | . 8 6 Special 43 | . 18 25 Kinetic 84 | 12 18 54 Thermal 66 | 12 18 36 Explosive 14 | . 8 6 Electromagnetic . | . . . Robot Hit Streak 11 | 8 5 11 Robot Miss Streak 2 | 2 2 1 Penetration Max . | . . . Secondary Targets 1 | . . 1 Max Gunslinging Chain 1 | . . 1 Shots Hit Robots 83 | 16 19 48 Core Hits 41 | 5 14 22 Critical Kills . | . . . Critical Parts Destroyed . | . . . Critical Strikes 1 | 1 . . Burn 1 | 1 . . Melee Attacks 5 | . 5 . Impact . | . . . Slashing . | . . . Piercing . | . . . Sneak Attacks 5 | . 5 . Combat Hostiles . | . . . Follow-up Attacks . | . . . Damage Inflicted 1856 | 171 676 1009 Guns 898 | 171 139 588 Cannons 169 | . . 169 Explosions 789 | . 537 252 Melee . | . . . Ramming . | . . . Kinetic 787 | 60 139 588 Thermal 280 | 111 . 169 Explosive 789 | . 537 252 Electromagnetic . | . . . Impact . | . . . Slashing . | . . . Piercing . | . . . Highest Corruption 1 | . 1 1 Average Corruption 1 | . 1 1 Corruption Purged . | . . . Corruption Blocked . | . . . Effects 14 | . 2 12 Message Errors 3 | . 1 2 Matter Fused 3 | . . 3 Heat Flow Errors 4 | . . 4 Energy Discharges 1 | . . 1 Data Loss (minor) 2 | . 1 1 Misfires 1 | . . 1 Overload Shots . | . . . Overflow Damage 2 | . 2 . Projectiles . | . . . Explosions 2 | . 2 . Melee . | . . . Knockbacks . | . . . Impact . | . . . Kinetic . | . . . Secondary . | . . . Self-Inflicted Damage 90 | . 90 . Shots 2 | . 2 . Rammed . | . . . Targets Rammed . | . . . Kicked . | . . . Crushed . | . . . Highest Temperature 281 | 90 40 281 Average Temperature 61 | 43 16 141 Received Heat Transfer 872 | . 108 764 Siege Activations . | . . . Martial Activations . | . . . Shielding Activations . | . . . Robots Disrupted . | . . . Combat Hostiles . | . . . Robots Corrupted . | . . . Combat Hostiles . | . . . Parts Fried . | . . . Impact Corruptions . | . . . Robots Melted . | . . . Combat Hostiles . | . . . Parts Melted 1 | 1 . . Heat Transferred 629 | 407 . 222 Parts Sabotaged . | . . . Parts Stolen . | . . . Parts Stripped . | . . . Power Chain Reactions . | . . . Alert | -11 -10 -10 ------- Run | Yrd Mat Sub Maximum Alert Level . | . . . Low Security (%) 100 | 100 100 . Level 1 . | . . . Level 2 . | . . . Level 3 . | . . . Level 4 . | . . . Level 5 . | . . . High Security . | . . . Max Security . | . . . Peak Influence 194 | 10 194 . Initial . | . . . Average 68 | 2 76 . Influence Increases 446 | 15 371 60 Destroy 0b10 Robot/C 240 | . 180 60 Destroy 0b10 Robot/NC 20 | 15 5 . Destroy Leader 42 | . 42 . Successful Hack 10 | . 10 . Disable Machine 45 | . 45 . Destroy Structure 89 | . 89 . Influence Decreases 446 | 15 257 174 Entered New Map 55 | . . 55 Time Decay 371 | 15 247 109 Lost Part 20 | . 10 10 Squads Dispatched 2 | . 2 . Investigation 1 | . 1 . Extermination . | . . . Reinforcement 1 | . 1 . Assault . | . . . Garrison . | . . . Intercept . | . . . Searches Triggered . | . . . Construction Impeded . | . . . Haulers Reinforced . | . . . Active Scanning Responses . | . . . Cargo Convoy Interrupts . | . . . Stealth | -11 -10 -10 --------- Run | Yrd Mat Sub Distress Signals 2 | . 2 . Communications Jammed . | . . . Distress Signals . | . . . Times Spotted 22 | . 10 12 Peak Tracking Total 6 | . 6 3 Tactical Retreats . | . . . Traps | -11 -10 -10 ------- Run | Yrd Mat Sub Traps Triggered 4 | . 3 1 Indirectly . | . . . Trap Hack Attempts . | . . . Triggered . | . . . Disarmed . | . . . Reprogrammed . | . . . Reused . | . . . Traps Extracted . | . . . Installed . | . . . Triggered . | . . . Machines | -11 -10 -10 ---------- Run | Yrd Mat Sub Machines Disabled 3 | . 3 . Max in Single Turn 2 | . 2 . Machines Repaired . | . . . Machines Dismantled . | . . . Machines Sabotaged . | . . . Overloaded Fab Kills . | . . . Hacking | -11 -10 -10 --------- Run | Yrd Mat Sub Machines Accessed 6 | . 6 . Terminals 6 | . 6 . Fabricators . | . . . Repair Stations . | . . . Recycling Units . | . . . Scanalyzers . | . . . Garrison Access . | . . . Total Hacks 17 | . 17 . Successful 11 | . 11 . Failed 6 | . 6 . Catastrophic 1 | . 1 . Database Lockouts . | . . . Manual 8 | . 8 . Terminals 17 | . 17 . Fabricators . | . . . Repair Stations . | . . . Recycling Units . | . . . Scanalyzers . | . . . Garrison Access . | . . . Terminal Hacks 8 | . 8 . Robot Analysis 2 | . 2 . Prototype ID Bank 1 | . 1 . Locate Traps 2 | . 2 . Recall Investigation 1 | . 1 . Zone Layout 2 | . 2 . Fabricator Hacks . | . . . Repair Station Hacks . | . . . Recycling Unit Hacks . | . . . Scanalyzer . | . . . Garrison Access Hacks . | . . . Unauthorized Hacks 3 | . 3 . Terminals 3 | . 3 . Botnet 2 | . 2 . Operators 1 | . 1 . Fabricators . | . . . Repair Stations . | . . . Recycling Units . | . . . Scanalyzers . | . . . Garrison Access . | . . . Data Cores Recovered . | . . . Used . | . . . Hacking Detections 5 | . 5 . Full Trace Events . | . . . Feedback Events . | . . . Feedback Blocked . | . . . Robot Schematics Acquired . | . . . Robots Built . | . . . Authchips . | . . . Time . | . . . Total Robot Build Rating . | . . . Part Schematics Acquired . | . . . Parts Built . | . . . Authchips . | . . . Time . | . . . Total Part Build Rating . | . . . Part Studies Acquired . | . . . Parts Repaired . | . . . Time . | . . . Parts Recycled . | . . . Recycled Matter . | . . . Retrieved Matter . | . . . Retrieved Components . | . . . Parts Scanalyzed . | . . . Part Schematics Acquired . | . . . Parts Damaged . | . . . Bothacking | -11 -10 -10 ------------ Run | Yrd Mat Sub Used RIF Installer . | . . . Robots Hacked 4 | . 4 . Non-combat 4 | . 4 . Combat . | . . . Robot Hacks Applied 5 | . 5 . parse_system 3 | . 3 . no_distress 1 | . 1 . check_alert 1 | . 1 . Relay Couplers Released . | . . . Fabnet Peak Effective % . | . . . Robots Rewired . | . . . Allies Hacked . | . . . Hacks Repelled . | . . . Allies | -11 -10 -10 -------- Run | Yrd Mat Sub Total Allies . | . . . Largest Group . | . . . Highest-Rated Group . | . . . Highest-Rated Ally . | . . . Total Orders . | . . . Ally Attacks . | . . . Total Damage . | . . . Kills . | . . . Allies Corrupted . | . . . Allies Melted . | . . . Intel | -11 -10 -10 ------- Run | Yrd Mat Sub Active Infowar (turns) 2087 | 17 755 1315 Seismic 2087 | 17 755 1315 Robot Analysis Total 2 | . 2 . Derelict Logs Recovered . | . . . Drone Launches . | . . . Drone Recoveries . | . . . Exploration | -11 -10 -10 ------------- Run | Yrd Mat Sub Turns Passed 2163 | 93 755 1315 Spaces Moved 1290 | 49 514 727 Core 1 | 1 . . Treads . | . . . Legs . | . . . Wheels 1289 | 48 514 727 Hover . | . . . Flight . | . . . Fastest Speed 50 | 50 95 110 Average Speed 125 | 88 103 144 Slowest Speed 155 | 95 140 155 Overloaded Moves . | . . . Propulsion Burnouts . | . . . Robots Hopped . | . . . Potential Cave-ins . | . . . Cave-ins Triggered . | . . . Exploration Rate (%) 41 | 3 86 36 Regions Visited 2 Branch Regions 1 Pre-discovered Areas . | . . . Known Exits Taken . | . . . Unknown Exits Taken 2 | 1 1 . Scrap Searched 3 | . . 3 Spaces Dug 17 | . 17 . Terrain Destroyed 121 | . 97 24 Melee . | . . . Projectile 11 | . 11 . AOE 110 | . 86 24 Terrain Rammed . | . . . Walls Destroyed . | . . . Machines Disabled . | . . . Actions | -11 -10 -10 --------- Run | Yrd Mat Sub Total 1567 | 73 647 847 Wait 98 | . 72 26 Move 1288 | 48 513 727 Hop . | . . . Pick Up 27 | 4 8 15 Fast Attach 10 | 8 1 1 Attach 4 | . . 4 Detach . | . . . Swap 19 | . 11 8 Drop 7 | 1 2 4 Fire 109 | 12 35 62 Melee 5 | . 5 . Ram . | . . . Kick . | . . . Crush . | . . . Escape Stasis . | . . . Rewire . | . . . Trap . | . . . Miscellaneous . | . . . Route ------- -11/Scrapyard -10/Materials (discovered 4 exits: [*Mat x2] / [*Min] / [*Sub]) -10/Subcaves History --------- Turn | Location | Event 22 | -11/Scrapyard | Discovered new exit (range 16) 94 | -11/Scrapyard | Entered Materials 319 | -10/Materials | Build established: Mutant 423 | -10/Materials | Discovered new exit (range 14) 506 | -10/Materials | Discovered new exit (range 15) 597 | -10/Materials | Discovered new exit (range 17) 841 | -10/Materials | Discovered new exit (range 6) 849 | -10/Materials | Entered Subcaves 850 | -10/Subcaves | Approached by a straggling Scientist 851 | -10/Subcaves | Shifting Twisted Machinery released Flamer 861 | -10/Subcaves | Shifting Twisted Machinery released Battle Cannon 992 | -10/Subcaves | Core integrity fell below 50% 1128 | -10/Subcaves | Core integrity fell below 20% 1326 | -10/Subcaves | A swath of the cavern ceiling suddenly collapsed 1519 | -10/Subcaves | Build established: Scavenger-Mutant 1958 | -10/Subcaves | Shifting Twisted Machinery released Barrage Gun 1968 | -10/Subcaves | Shifting Twisted Machinery released Battle Rifle 2164 | -10/Subcaves | Destroyed by Piercing Trap Last Messages --------------- 01990_ U9-G2F(R) destroyed. 01996_ YE-8JH(R) affixes Scrap Shield Fragment to Scrap Shield. 01996_ YE-8JH(R) destroyed. 01999_ Acquired 37 matter. 02007_ Acquired Sub. Power Source. MX-Y0A(c): "I think it's somewhere east of here" 02034_ System corrupted: Matter fused (-8). MX-Y0A(c): "I think it's somewhere east of here" 02100_ Wheel destroyed. 02102_ 79-Z2B(R) destroyed. 02104_ 3T-779(R) destroyed. 02112_ Acquired 10 matter. 02117_ Acquired 13 matter. 02118_ The unstable cave ceiling collapses. MX-Y0A(c): "I think it's somewhere northeast of here" 02150_ The unstable cave ceiling collapses. 02164_ Triggered Piercing Trap. 02164_ Spikes shoot up from the floor. Map ----- +----------------------------------------------------+ | ####?????????????????????????????????????????????? | | ?????????????????????????????????????????????????? | | ?????????????????????????????????????????????????? | | ?????????????????????????????????????????????????? | | ?????????##??????????????????????????????????????? | | ????????? #?????????????????????????????????????? | | ?????????? #??????##????????????????????????????? | | ?????????? "????#" ????????????????????????????? | | ??????????? "###?" " ????????????????????????????? | | ??????????? " "## #????????????????????????????? | | ???????????#""" " ##???????????????????????????? | | ??????????## """" " #??????????????????????????? | | ?????????##""&" "" "" ???????????????????????????? | | ????????##" & " " """"???????????????????????????? | | ???????##"" && # #"????????????????????????????? | | ##????##"" # ##?????????????????????????????? | | ##???# #?????????????????????????????? | | ##??## ! & # #?????????????????????????????? | | ###### * ###???????????????????????????? | | ## ## # #######?????????????????????? | | ## c## #?????????????????????? | | # ##????????????????????? | | # ### # #????????????????????? | | ## ### #### #????????????????????? | | ?## ##?# #??## #????????????????????? | | ??# #####?# #???## @ #????????????????????? | | ?# ###???? #? #????????????????????? | | ?## ????# ## ##????????????????????? | | ??# ???# ### ######?????????????????????? | | ?? ? ### ^ ???????????????????????????? | | ?? #? ????????????????????????????? | | ? #### ?## ?????????????????????????????? | | ? ???# ??##??????????????????????????????? | | ???? ### ??????????????????????????????????? | | ?##??????#??# ??????????????????????????????????? | | ???????????? ??????????????????????????????????? | | ?????????????##??????????????????????????????????? | | ?????????????????????????????????????????????????? | | ?????????????????????????????????????????????????? | | ?????????????????????????????????????????????????? | | ?????????????????????????????????????????????????? | | ?????????????????????????????????????????????????? | | ?????????????????????????????????????????????????? | | ?????????????????????????????????????????????????? | | ?????????????????????????????????????????????????? | | ?????????????????????????????????????????????????? | | ?????????????????????????????????????????????????? | | ?????????????????????????????????????????????????? | | ?????????????????????????????????????????????????? | | ?????????????????????????????????????????????????? | +----------------------------------------------------+ Best States ------------- Heat Dissipation 25 Energy Generation 15 Energy Capacity 200 Matter Stores 300 Matter Capacity 300 Sight Range 16 Terrain Scan Density 10 Evasion (%) 44 Item Schematics ----------------- None Robot Schematics ------------------ None Fabricated ------------ Nothing Repaired ---------- Nothing Studied --------- None Alien Tech Used ----------------- None Achievements -------------- Junior Dev Challenges ------------ None Game ------ Seed SmartActuatorAccelerator Manual? 0 Play Time 00:20:56 Cumulative 134.6 hours Start 2026.02.10 @ 12:50:58 End 2026.02.10 @ 13:11:30 Sessions 1 Manual Loads 0 Difficulty Rogue Special Mode None Game No. 112 Rogue 112 Adventurer 0 Explorer 0 Win Type - Total 1 Types 1/0/0/0/0/0/0/0/0/0 Lore% 62 Gallery% 58 Achievement% 37 Wizard Run 0 Options --------- Layout 1 ASCII 0 Keyboard 0 Movement Numpad Keybinds 0 Fullscreen 1 Font 18/SmallcapsGlow Map View 50x40 Zoom Use 0% Tactical HUD 1 Map Filters NONE Filters NONE Steam 1 RUN: 039360c5-0f25-4b33-bac6-5e75c2d30ead